bitfinex/quotes_BTCUSD_20250822
["timestamp","ask_amount","ask_price","bid_price","bid_amount"]
[1755891749865,0.31771275,116920.0,116910.0,0.17421428]
[1755891750083,0.76760066,116920.0,116910.0,0.17421428]
[1755891753176,1.21543857,116920.0,116910.0,0.17421428]
[1755891753817,0.31976275,116920.0,116910.0,0.17421428]
[1755891754030,1.21543857,116920.0,116910.0,0.17121428]
[1755891754255,1.21343857,116920.0,116910.0,0.17121428]
[1755891754437,1.21443857,116920.0,116910.0,0.17321428]
[1755891754670,1.22783116,116920.0,116910.0,0.17121428]
[1755891755096,1.22883116,116920.0,116910.0,0.17221428]
[1755891755306,1.23083116,116920.0,116910.0,0.17221428]
[1755891757040,0.78299325,116920.0,116910.0,0.17221428]
[1755891761304,0.79964227,116920.0,116910.0,0.17221428]
[1755891763006,0.78624968,116920.0,116910.0,0.17221428]
[1755891764784,0.32096275,116920.0,116910.0,0.17221428]
[1755891765020,0.76880066,116920.0,116910.0,0.17221428]
[1755891767436,0.32096275,116920.0,116910.0,0.17221428]
[1755891767657,0.31584275,116920.0,116910.0,0.17221428]
[1755891767874,0.76368066,116920.0,116910.0,0.17221428]
[1755891768088,0.76368066,116920.0,116910.0,0.18964957]
[1755891769344,0.76689066,116920.0,116910.0,0.18964957]
[1755891769564,0.76887066,116920.0,116910.0,0.18964957]
[1755891771601,0.78226299,116920.0,116910.0,0.17221428]
[1755891771819,1.2301009,116920.0,116910.0,0.17221428]
[1755891772679,0.78226299,116920.0,116910.0,0.17221428]
[1755891772888,0.76887066,116920.0,116910.0,0.17221428]
[1755891774859,1.21670857,116920.0,116910.0,0.17221428]
[1755891776111,1.24242157,116920.0,116910.0,0.17221428]
[1755891777538,1.25987059,116920.0,116910.0,0.17221428]
[1755891778624,1.27326329,116920.0,116910.0,0.17221428]
[1755891779622,1.61326329,116920.0,116910.0,0.16044605]
[1755891780448,1.59987059,116920.0,116910.0,0.16044605]
[1755891784545,1.64243151,116920.0,116910.0,0.16044605]
[1755891784754,1.65582524,116920.0,116910.0,0.16044605]
[1755891785374,1.65581585,116920.0,116910.0,0.16044605]
[1755891785775,1.83088741,116920.0,116910.0,0.16044605]
[1755891786238,1.83388741,116920.0,116910.0,0.16044605]
[1755891786426,1.64943655,116920.0,116910.0,0.16044605]
[1755891786675,1.64743655,116920.0,116910.0,0.15944605]
[1755891786840,1.64843655,116920.0,116910.0,0.16044605]
[1755891787003,1.64843655,116920.0,116910.0,0.15944605]
[1755891787209,1.64543655,116920.0,116910.0,0.15944605]
[1755891787409,1.64943655,116920.0,116910.0,0.15944605]
[1755891787636,1.64342212,116920.0,116910.0,0.15944605]
[1755891788046,1.62693432,116920.0,116910.0,0.16044605]
[1755891788247,1.61089523,116920.0,116910.0,0.16044605]
[1755891788475,1.60287059,116920.0,116910.0,0.16044605]
[1755891788700,1.64029378,116920.0,116910.0,0.16044605]
[1755891789269,1.62427455,116920.0,116910.0,0.16044605]
[1755891789902,1.62427455,116920.0,116840.0,0.06465145]
[1755891789903,0.35744902,116880.0,116840.0,0.06465145]
[1755891790102,0.44783791,116850.0,116840.0,0.03531907]
[1755891790320,0.23860475,116850.0,116840.0,0.17646428]
[1755891790749,0.15172,116850.0,116840.0,0.17646428]
[1755891791128,0.15172,116850.0,116840.0,0.17746428]
[1755891791350,0.15172,116850.0,116840.0,0.17646428]
[1755891791585,0.002,116850.0,116840.0,0.17646428]
[1755891791789,0.15372,116850.0,116840.0,0.24853205]
[1755891792817,0.002,116850.0,116840.0,0.24853205]
[1755891793018,0.002,116850.0,116840.0,0.69636996]
[1755891793261,0.003,116850.0,116840.0,0.69636996]
[1755891796075,0.003,116850.0,116840.0,0.24853205]
[1755891796249,0.003,116850.0,116840.0,0.17646428]
[1755891797163,0.003,116850.0,116840.0,0.20218628]
[1755891802254,0.15468,116850.0,116840.0,0.65002419]
[1755891803527,0.003,116850.0,116840.0,0.65002419]
[1755891806615,0.003,116850.0,116840.0,1.2495421]
[1755891806862,0.003,116850.0,116840.0,1.33641175]
[1755891807064,0.003,116850.0,116840.0,1.58473795]
[1755891807282,0.003,116850.0,116840.0,0.78906213]
[1755891807507,0.001,116850.0,116840.0,1.68473795]
[1755891807720,0.003,116850.0,116840.0,1.68473795]
[1755891807956,0.003,116850.0,116840.0,2.02473795]
[1755891808173,0.61860544,116890.0,116840.0,1.9632965]
[1755891808388,0.08688475,116880.0,116860.0,0.44783791]
[1755891808616,0.24136475,116880.0,116870.0,0.00410912]
[1755891808822,0.08688475,116880.0,116870.0,0.17523912]
[1755891809029,0.08895475,116880.0,116870.0,0.17523912]
[1755891809474,0.24335475,116880.0,116870.0,0.17523912]
[1755891809684,0.24128475,116880.0,116870.0,0.24300326]
[1755891809838,0.24128475,116880.0,116870.0,0.24086414]
[1755891810047,0.24228475,116880.0,116870.0,0.24186414]
[1755891810743,0.24228475,116880.0,116870.0,0.24286414]
[1755891810935,0.003,116880.0,116870.0,0.24600414]
[1755891811360,0.003,116880.0,116870.0,0.69384205]
[1755891811583,0.003,116880.0,116870.0,0.75526867]
[1755891811977,0.003,116880.0,116870.0,0.85526867]
[1755891812179,0.003,116880.0,116870.0,1.74310658]
[1755891812384,0.003,116880.0,116870.0,1.68067996]
[1755891812385,0.002,116880.0,116870.0,1.68067996]
[1755891812610,0.002,116880.0,116870.0,1.84436653]
[1755891812808,0.003,116880.0,116870.0,1.86281555]
[1755891813010,0.001,116880.0,116870.0,1.86181555]
[1755891813212,0.23432168,116910.0,116870.0,1.41297764]
[1755891813429,0.16304168,116910.0,116890.0,0.44683791]
[1755891813729,0.16304168,116910.0,116900.0,0.00636714]
[1755891813936,0.16304168,116910.0,116900.0,0.17745714]
[1755891814132,0.16304168,116910.0,116900.0,0.20102757]
[1755891814336,0.16516168,116910.0,116900.0,0.198889]
[1755891814521,0.16913168,116910.0,116900.0,0.19694328]
[1755891814719,0.16813168,116910.0,116900.0,0.28381293]
[1755891814950,0.16813168,116910.0,116900.0,0.19694328]
[1755891815152,1.06030336,116910.0,116900.0,0.17123428]
[1755891815416,1.169839,116910.0,116900.0,0.17223428]
[1755891815665,0.72200109,116910.0,116900.0,0.17223428]
[1755891815879,0.66666596,116910.0,116900.0,0.17623428]
[1755891816090,1.11550387,116910.0,116900.0,0.19285771]
[1755891816306,1.11450387,116910.0,116900.0,0.19285771]
[1755891816522,0.59601643,116910.0,116900.0,0.18985771]
[1755891816756,1.04485434,116910.0,116900.0,0.19185771]
[1755891816969,0.59701643,116910.0,116900.0,0.18985771]
[1755891817183,0.43429643,116910.0,116900.0,0.18985771]
[1755891817396,0.60249643,116910.0,116900.0,0.19085771]
[1755891817608,0.60249643,116910.0,116900.0,0.18985771]
[1755891817808,0.60149643,116910.0,116900.0,0.18985771]
[1755891818016,0.60349643,116910.0,116900.0,0.18985771]
[1755891818240,0.26349643,116910.0,116900.0,0.18985771]
[1755891818453,0.19523568,116910.0,116900.0,0.19194771]
[1755891818635,0.16952168,116910.0,116900.0,0.19194771]
[1755891819303,0.17052168,116910.0,116900.0,0.19194771]
[1755891819561,0.16752168,116910.0,116900.0,0.19408771]
[1755891819772,0.16852168,116910.0,116900.0,0.19394771]
[1755891820004,0.16752168,116910.0,116900.0,0.19094771]
[1755891820417,0.17064168,116910.0,116900.0,0.19394771]
[1755891820634,0.17261168,116910.0,116900.0,0.19185771]
[1755891820871,0.25949643,116910.0,116900.0,0.19185771]
[1755891821076,0.26049643,116910.0,116900.0,0.19185771]
[1755891821500,0.70833434,116910.0,116900.0,0.19185771]
[1755891822810,0.26049643,116910.0,116900.0,0.19185771]
[1755891825286,0.70833434,116910.0,116900.0,0.19185771]
[1755891825487,0.26049643,116910.0,116900.0,0.17423428]
[1755891825895,0.70833434,116910.0,116900.0,0.17423428]
[1755891826138,0.26049643,116910.0,116900.0,0.17423428]
[1755891826351,0.25540643,116910.0,116900.0,0.17632428]
[1755891826571,0.25540643,116910.0,116900.0,0.19395671]
[1755891826572,0.25752643,116910.0,116900.0,0.19395671]
[1755891827026,0.26049643,116910.0,116900.0,0.19186671]
[1755891827293,0.26049643,116910.0,116900.0,0.19395671]
[1755891827725,0.26049643,116910.0,116900.0,0.19186671]
[1755891829216,0.70833434,116910.0,116900.0,0.17423428]
[1755891829636,0.26049643,116910.0,116900.0,0.17423428]
[1755891830061,0.70833434,116910.0,116900.0,0.17423428]
[1755891830270,0.26049643,116910.0,116900.0,0.17423428]
[1755891830478,0.70833434,116910.0,116900.0,0.17423428]
[1755891831122,1.04833434,116910.0,116900.0,0.17423428]
[1755891831963,0.60049643,116910.0,116900.0,0.17423428]
[1755891832172,1.04833434,116910.0,116900.0,0.17423428]
[1755891833681,0.60049643,116910.0,116900.0,0.17423428]
[1755891833897,1.04833434,116910.0,116900.0,0.17423428]
[1755891834107,1.07404834,116910.0,116900.0,0.17423428]
[1755891834497,0.62621043,116910.0,116900.0,0.17423428]
[1755891834719,1.07404834,116910.0,116900.0,0.17423428]
[1755891835417,1.04833434,116910.0,116900.0,0.17423428]
[1755891836537,1.04833434,116910.0,116900.0,0.17098428]
[1755891836538,1.79467753,116910.0,116900.0,0.17098428]
[1755891836752,1.85021758,116910.0,116900.0,0.17098428]
[1755891836960,1.87594058,116910.0,116900.0,0.17098428]
[1755891837166,1.87494058,116910.0,116900.0,0.17098428]
[1755891837632,1.87694058,116910.0,116900.0,0.16798428]
[1755891837849,2.02370666,116910.0,116900.0,0.16898428]
[1755891838055,1.95750666,116910.0,116900.0,0.16898428]
[1755891838271,2.10521147,116910.0,116900.0,0.16898428]
[1755891838455,2.12822696,116910.0,116900.0,0.16898428]
[1755891838698,2.12522696,116910.0,116900.0,0.16798428]
[1755891838928,2.02522696,116910.0,116900.0,0.16798428]
[1755891839374,1.99445769,116910.0,116900.0,0.16798428]
[1755891839583,1.90781135,116910.0,116900.0,0.16798428]
[1755891839801,2.03694161,116910.0,116900.0,0.16798428]
[1755891840012,1.93894161,116910.0,116900.0,0.16798428]
[1755891840209,2.03494161,116910.0,116900.0,0.16798428]
[1755891840465,2.01968637,116910.0,116900.0,0.16798428]
[1755891841132,1.91968637,116910.0,116900.0,0.15941278]
[1755891841379,2.01968637,116910.0,116900.0,0.15941278]
[1755891841791,2.01964758,116910.0,116900.0,0.15941278]
[1755891842035,1.91964758,116910.0,116900.0,0.15941278]
[1755891842242,2.01964758,116910.0,116900.0,0.15941278]
[1755891842450,2.01962352,116910.0,116900.0,0.15941278]
[1755891843287,1.91962352,116910.0,116900.0,0.15941278]
[1755891843508,1.89660803,116910.0,116900.0,0.15941278]
[1755891843713,1.99660803,116910.0,116900.0,0.15941278]
[1755891844125,1.73004803,116910.0,116900.0,0.15941278]
[1755891844334,1.89588803,116910.0,116900.0,0.15941278]
[1755891844543,1.89580803,116910.0,116900.0,0.15941278]
[1755891845005,1.79580803,116910.0,116900.0,0.15941278]
[1755891845226,1.01528289,116910.0,116900.0,0.15941278]
[1755891845446,1.31764054,116910.0,116900.0,0.15941278]
[1755891845658,0.99925623,116910.0,116900.0,0.15941278]
[1755891845871,1.13851133,116910.0,116900.0,0.15941278]
[1755891846338,0.78511371,116910.0,116900.0,0.15941278]
[1755891846811,1.12511371,116910.0,116900.0,0.15941278]
[1755891847236,0.95951371,116910.0,116900.0,0.15941278]
[1755891847457,0.78491371,116910.0,116900.0,0.16137278]
[1755891847702,1.12491371,116910.0,116900.0,0.16137278]
[1755891847939,0.6665844,116910.0,116900.0,0.16456278]
[1755891848156,1.12023834,116910.0,116900.0,0.16456278]
[1755891848376,0.17520805,116910.0,116900.0,0.16456278]
[1755891848600,0.73865169,116910.0,116900.0,0.16456278]
[1755891848818,1.08910071,116910.0,116900.0,0.16456278]
[1755891849032,0.65139042,116910.0,116900.0,0.16456278]
[1755891849258,1.03536672,116910.0,116900.0,0.16137278]
[1755891849481,1.05281574,116910.0,116900.0,0.16137278]
[1755891849921,1.05281574,116910.0,116900.0,0.16456278]
[1755891850174,1.05781574,116910.0,116900.0,0.16137278]
[1755891850615,1.05281574,116910.0,116900.0,0.16137278]
[1755891850824,1.05581574,116910.0,116900.0,0.16137278]
[1755891851256,0.61810545,116910.0,116900.0,0.16137278]
[1755891851483,1.05581574,116910.0,116900.0,0.16137278]
[1755891851937,0.61810545,116910.0,116900.0,0.16137278]
[1755891852114,1.05581574,116910.0,116900.0,0.16137278]
[1755891853821,1.05905574,116910.0,116900.0,0.15941278]
[1755891855134,1.07501049,116910.0,116900.0,0.15941278]
[1755891855251,0.6373002,116910.0,116900.0,0.15941278]
[1755891855451,1.07501049,116910.0,116900.0,0.15941278]
[1755891857911,1.10073149,116910.0,116900.0,0.15941278]
[1755891858115,1.10073149,116910.0,116900.0,0.15220136]
[1755891859697,1.11412748,116910.0,116900.0,0.15220136]
[1755891859905,1.11414484,116910.0,116900.0,0.15220136]
[1755891860535,1.12452601,116910.0,116900.0,0.15220136]
[1755891861149,1.13251355,116910.0,116900.0,0.15220136]
[1755891861567,1.35531355,116910.0,116900.0,0.15220136]
[1755891861799,1.52638531,116910.0,116900.0,0.15220136]
[1755891862014,1.35531355,116910.0,116900.0,0.15220136]
[1755891862228,1.52638531,116910.0,116900.0,0.15220136]
[1755891863855,1.35531355,116910.0,116900.0,0.15220136]
[1755891864020,1.52638531,116910.0,116900.0,0.15220136]
[1755891864232,1.35531355,116910.0,116900.0,0.15220136]
[1755891865014,0.90462209,116910.0,116900.0,0.15220136]
[1755891865219,1.35271355,116910.0,116900.0,0.15220136]
[1755891865447,1.37112658,116910.0,116900.0,0.15220136]
[1755891866048,1.3711308,116910.0,116900.0,0.15220136]
[1755891866289,1.4424108,116910.0,116900.0,0.15220136]
[1755891866508,1.42901481,116910.0,116900.0,0.15220136]
[1755891867213,1.60008657,116910.0,116900.0,0.15220136]
[1755891867430,1.60008657,116910.0,116900.0,0.15735136]
[1755891867431,0.97563335,116910.0,116900.0,0.15735136]
[1755891867678,0.96251032,116910.0,116900.0,0.15220136]
[1755891867923,1.41060178,116910.0,116900.0,0.15220136]
[1755891868140,1.42901875,116910.0,116900.0,0.15220136]
[1755891869030,1.42104417,116910.0,116900.0,0.15220136]
[1755891869262,1.42903881,116910.0,116900.0,0.15220136]
[1755891869703,1.44243621,116910.0,116900.0,0.15220136]
[1755891870132,0.99434475,116910.0,116900.0,0.15220136]
[1755891870346,0.82954475,116910.0,116900.0,0.15220136]
[1755891870561,1.40196022,116910.0,116900.0,0.15728136]
[1755891870783,1.38056818,116910.0,116900.0,0.15728136]
[1755891871236,1.3980172,116910.0,116900.0,0.15728136]
[1755891871484,1.3722962,116910.0,116900.0,0.15728136]
[1755891873993,1.38569123,116910.0,116900.0,0.15728136]
[1755891875116,1.42342706,116910.0,116900.0,0.15728136]
[1755891875689,1.42242706,116910.0,116900.0,0.15728136]
[1755891876477,1.40903203,116910.0,116900.0,0.15728136]
[1755891878097,1.39304274,116910.0,116900.0,0.15728136]
[1755891878311,1.40905394,116910.0,116900.0,0.15728136]
[1755891878506,1.40873394,116910.0,116900.0,0.15728136]
[1755891878738,0.96064248,116910.0,116900.0,0.15728136]
[1755891878946,1.40873394,116910.0,116900.0,0.15728136]
[1755891879362,1.24457394,116910.0,116900.0,0.15422136]
[1755891879564,1.40857394,116910.0,116900.0,0.15422136]
[1755891879772,1.42407902,116910.0,116900.0,0.15422136]
[1755891880406,1.26007902,116910.0,116900.0,0.15422136]
[1755891880619,1.42391902,116910.0,116900.0,0.15422136]
[1755891881042,1.42715902,116910.0,116900.0,0.15422136]
[1755891881719,1.42715902,116910.0,116900.0,0.15220136]
[1755891883090,1.43516721,116910.0,116900.0,0.15220136]
[1755891883315,1.46088821,116910.0,116900.0,0.15220136]
[1755891883554,1.47934166,116910.0,116900.0,0.15220136]
[1755891886457,1.46594789,116910.0,116900.0,0.15220136]
[1755891887325,1.46595823,116910.0,116900.0,0.15220136]
[1755891889425,1.44750347,116910.0,116900.0,0.15220136]
[1755891889642,1.46089925,116910.0,116900.0,0.15220136]
[1755891891360,1.47935606,116910.0,116900.0,0.15220136]
[1755891892444,1.47935586,116910.0,116900.0,0.15220136]
[1755891893088,1.0312644,116910.0,116900.0,0.15220136]
[1755891893328,1.47935586,116910.0,116900.0,0.15220136]
[1755891893523,1.47935807,116910.0,116900.0,0.15220136]
[1755891893765,1.44965155,116910.0,116900.0,0.15422136]
[1755891893975,1.44754155,116910.0,116900.0,0.15728136]
[1755891894182,1.44965155,116910.0,116900.0,0.15728136]
[1755891894394,0.83561009,116910.0,116900.0,0.15728136]
[1755891894603,1.42789253,116910.0,116900.0,0.15728136]
[1755891894813,1.40217153,116910.0,116900.0,0.15728136]
[1755891895046,1.38877575,116910.0,116900.0,0.15728136]
[1755891895480,1.40614477,116910.0,116900.0,0.15728136]
[1755891896111,1.39012274,116910.0,116900.0,0.15728136]
[1755891896335,1.40614726,116910.0,116900.0,0.15728136]
[1755891896554,1.40614795,116910.0,116900.0,0.15728136]
[1755891897390,1.4061488,116910.0,116900.0,0.15728136]
[1755891898038,1.39012274,116910.0,116900.0,0.15728136]
[1755891898900,1.41584174,116910.0,116900.0,0.15728136]
[1755891899316,1.37810591,116910.0,116900.0,0.15728136]
[1755891899724,1.21654591,116910.0,116900.0,0.15728136]
[1755891899936,1.39090092,116910.0,116900.0,0.15728136]
[1755891901250,0.54160044,116910.0,116900.0,0.15728136]
[1755891901462,0.67660144,116910.0,116900.0,0.15728136]
[1755891901686,0.32320643,116910.0,116900.0,0.1730095]
[1755891902145,0.32320643,116910.0,116900.0,0.17514807]
[1755891902348,0.32020643,116910.0,116900.0,0.17514807]
[1755891902561,0.31920643,116910.0,116900.0,0.17514807]
[1755891903250,0.32120643,116910.0,116900.0,0.17514807]
[1755891903467,0.32220643,116910.0,116900.0,0.17614807]
[1755891904341,0.32020643,116910.0,116900.0,0.17614807]
[1755891904912,0.32120643,116910.0,116900.0,0.17814807]
[1755891906035,0.31440363,116910.0,116900.0,0.17814807]
[1755891910699,0.31440363,116910.0,116900.0,0.62623953]
[1755891910920,0.31440363,116910.0,116900.0,0.62410096]
[1755891911128,0.31440363,116910.0,116900.0,0.1760095]
[1755891911366,0.31440363,116910.0,116900.0,0.17814807]
[1755891912034,0.31440363,116910.0,116900.0,0.62623953]
[1755891912252,0.31440363,116910.0,116900.0,0.62410096]
[1755891912476,0.16272,116910.0,116900.0,0.1760095]
[1755891912693,0.16272,116910.0,116900.0,0.62623953]
[1755891912943,0.16272,116910.0,116900.0,0.62410096]
[1755891913176,0.16272,116910.0,116900.0,0.63288003]
[1755891913873,0.16172,116910.0,116900.0,0.63088003]
[1755891914105,0.16272,116910.0,116900.0,0.18678857]
[1755891914336,0.16172,116910.0,116900.0,0.18578857]
[1755891914567,0.16172,116910.0,116900.0,0.62510096]
[1755891915058,0.16272,116910.0,116900.0,0.62710096]
[1755891915514,0.16272,116910.0,116900.0,0.1790095]
[1755891915747,0.16272,116910.0,116900.0,0.62710096]
[1755891915955,0.16272,116910.0,116900.0,0.1790095]
[1755891916176,0.16272,116910.0,116900.0,0.63581845]
[1755891916382,0.16272,116910.0,116900.0,0.62710096]
[1755891917465,0.16272,116910.0,116900.0,0.1790095]
[1755891917886,0.16272,116910.0,116900.0,0.62710096]
[1755891918548,0.16272,116910.0,116900.0,0.18760081]
[1755891918797,0.16272,116910.0,116900.0,0.90419227]
[1755891919010,0.16272,116910.0,116900.0,0.45610081]
[1755891919214,0.002,116910.0,116900.0,0.90419227]
[1755891920510,0.002,116910.0,116900.0,0.45610081]
[1755891920719,0.002,116910.0,116900.0,0.90419227]
[1755891921772,0.002,116910.0,116900.0,1.06319227]
[1755891922429,0.002,116910.0,116900.0,0.90419227]
[1755891922649,0.002,116910.0,116900.0,0.92989927]
[1755891923082,0.002,116910.0,116900.0,0.48180781]
[1755891923729,0.002,116910.0,116900.0,0.92989927]
[1755891925663,0.002,116910.0,116900.0,0.4732165]
[1755891925907,0.00412,116910.0,116900.0,0.4444495]
[1755891927698,0.00412,116910.0,116900.0,0.4424295]
[1755891927950,0.54225621,116910.0,116900.0,0.4424295]
[1755891928177,0.09416475,116910.0,116900.0,0.4424295]
[1755891929738,0.54225621,116910.0,116900.0,0.42670136]
[1755891929973,0.09416475,116910.0,116900.0,0.42670136]
[1755891930205,0.54225621,116910.0,116900.0,0.42670136]
[1755891930633,0.09416475,116910.0,116900.0,0.15820136]
[1755891930876,0.54225621,116910.0,116900.0,0.15820136]
[1755891931305,0.54225621,116910.0,116900.0,0.1740215]
[1755891933724,0.89970523,116910.0,116900.0,0.15820136]
[1755891934176,0.92542123,116910.0,116900.0,0.15820136]
[1755891934619,0.92542123,116910.0,116900.0,0.15620136]
[1755891934859,0.92342123,116910.0,116900.0,0.15220136]
[1755891935071,0.92542123,116910.0,116900.0,0.15320136]
[1755891935291,0.92642123,116910.0,116900.0,0.15420136]
[1755891936929,0.92642123,116910.0,116900.0,0.00214428]
[1755891938589,0.92642123,116910.0,116900.0,0.17322428]
[1755891941314,0.93981641,116910.0,116900.0,0.17322428]
[1755891944851,0.49172495,116910.0,116900.0,0.17322428]
[1755891945061,0.93981641,116910.0,116900.0,0.17322428]
[1755891945262,0.49172495,116910.0,116900.0,0.17322428]
[1755891945689,1.09697641,116910.0,116900.0,0.17322428]
[1755891946517,1.08358123,116910.0,116900.0,0.17322428]
[1755891949510,0.64888475,116910.0,116900.0,0.17322428]
[1755891949729,1.09697621,116910.0,116900.0,0.17322428]
[1755891953070,0.64888475,116910.0,116900.0,0.17322428]
[1755891953277,1.09697621,116910.0,116900.0,0.17322428]
[1755891954598,0.64888475,116910.0,116900.0,0.17322428]
[1755891955042,1.09697621,116910.0,116900.0,0.17322428]
[1755891956379,1.16825621,116910.0,116900.0,0.17322428]
[1755891962219,1.18428519,116910.0,116900.0,0.17322428]
[1755891963317,1.19230258,116910.0,116900.0,0.17322428]
[1755891963736,1.19230851,116910.0,116900.0,0.17322428]
[1755891965611,0.74421705,116910.0,116900.0,0.17322428]
[1755891965812,1.19230851,116910.0,116900.0,0.17322428]
[1755891966865,1.18429658,116910.0,116900.0,0.17322428]
[1755891967072,1.21079491,116910.0,116900.0,0.17322428]
[1755891967490,1.2107961,116910.0,116900.0,0.17322428]
[1755891967698,1.21079615,116910.0,116900.0,0.17322428]
[1755891968328,0.76270469,116910.0,116900.0,0.17322428]
[1755891968536,1.21079615,116910.0,116900.0,0.17322428]
[1755891968740,0.76270469,116910.0,116900.0,0.17322428]
[1755891968950,1.21079615,116910.0,116900.0,0.17322428]
[1755891969433,1.21365539,116910.0,116900.0,0.17535428]
[1755891969659,0.76556393,116910.0,116900.0,0.17535428]
[1755891969876,1.21365539,116910.0,116900.0,0.17852428]
[1755891970340,1.21068615,116910.0,116900.0,0.17535428]
[1755891970584,1.20764916,116910.0,116900.0,0.17535428]
[1755891970823,1.20764916,116910.0,116900.0,0.17852428]
[1755891970824,0.74106648,116910.0,116900.0,0.17852428]
[1755891971038,0.74106648,116910.0,116900.0,0.17535428]
[1755891971039,1.18915794,116910.0,116900.0,0.17535428]
[1755891973466,0.74106648,116910.0,116900.0,0.17535428]
[1755891973684,1.18915794,116910.0,116900.0,0.17535428]
[1755891974555,1.19220794,116910.0,116900.0,0.17535428]
[1755891975888,1.16814621,116910.0,116900.0,0.17535428]
[1755891976102,1.19222523,116910.0,116900.0,0.17535428]
[1755891976766,1.18917522,116910.0,116900.0,0.17852428]
[1755891976996,1.19222522,116910.0,116900.0,0.17535428]
[1755891977907,1.23152551,116910.0,116900.0,0.17535428]
[1755891978401,1.79142345,116910.0,116900.0,0.17535428]
[1755891978605,1.79142345,116910.0,116900.0,0.17322428]
[1755891979032,1.7914234,116910.0,116900.0,0.17322428]
[1755891979253,0.778264,116910.0,116900.0,0.17852428]
[1755891979464,1.7862534,116910.0,116900.0,0.17852428]
[1755891979907,1.77822711,116910.0,116900.0,0.17852428]
[1755891980327,1.76217444,116910.0,116900.0,0.17852428]
[1755891980512,1.20212847,116910.0,116900.0,0.17852428]
[1755891980971,0.75418504,116910.0,116900.0,0.17852428]
[1755891981391,0.74079006,116910.0,116900.0,0.17852428]
[1755891981812,1.18873349,116910.0,116900.0,0.17852428]
[1755891982274,0.74079006,116910.0,116900.0,0.17852428]
[1755891982691,1.18873349,116910.0,116900.0,0.17852428]
[1755891983121,0.74079006,116910.0,116900.0,0.17852428]
[1755891983328,1.18873349,116910.0,116900.0,0.17852428]
[1755891984165,1.19085349,116910.0,116900.0,0.17535428]
[1755891984550,1.20424659,116910.0,116900.0,0.17535428]
[1755891984791,1.20212659,116910.0,116900.0,0.17852428]
[1755891985138,1.20424659,116910.0,116900.0,0.17852428]
[1755891985794,0.75630316,116910.0,116900.0,0.17535428]
[1755891986006,1.20424659,116910.0,116900.0,0.17535428]
[1755891986632,1.20729659,116910.0,116900.0,0.17535428]
[1755891986842,1.20424659,116910.0,116900.0,0.17535428]
[1755891987693,1.19085349,116910.0,116900.0,0.17535428]
[1755891987890,1.19390349,116910.0,116900.0,0.17535428]
[1755891988137,0.74291006,116910.0,116900.0,0.17852428]
[1755891988394,1.19085349,116910.0,116900.0,0.17852428]
[1755891989455,1.19085349,116910.0,116900.0,0.17535428]
[1755891990098,1.19085349,116910.0,116900.0,0.17852428]
[1755891990310,1.19085349,116910.0,116900.0,0.17535428]
[1755891990934,1.20424656,116910.0,116900.0,0.17535428]
[1755891991917,1.20744656,116910.0,116900.0,0.17535428]
[1755891992744,1.20744656,116910.0,116900.0,0.17322428]
[1755891993355,1.22349104,116910.0,116900.0,0.17322428]
[1755891993602,1.20744656,116910.0,116900.0,0.17322428]
[1755891994052,1.84250663,116910.0,116900.0,0.17322428]
[1755891994346,1.94567707,116910.0,116900.0,0.17322428]
[1755891994546,1.04978907,116910.0,116900.0,0.17322428]
[1755891994766,1.94567593,116910.0,116900.0,0.17322428]
[1755891994977,1.94367593,116910.0,116900.0,0.17222428]
[1755891995179,1.94667593,116910.0,116900.0,0.17222428]
[1755891995581,1.94267593,116910.0,116900.0,0.17122428]
[1755891995791,1.9656885,116910.0,116900.0,0.17122428]
[1755891996125,1.9696885,116910.0,116900.0,0.17122428]
[1755891996574,1.9909446,116910.0,116900.0,0.17122428]
[1755891996789,1.89903897,116910.0,116900.0,0.17122428]
[1755891997009,1.12485883,116910.0,116900.0,0.17222428]
[1755891997223,1.12485883,116910.0,116900.0,0.17122428]
[1755891997224,0.8265954,116910.0,116900.0,0.17122428]
[1755891997458,1.27853883,116910.0,116900.0,0.17122428]
[1755891997699,1.25952626,116910.0,116900.0,0.17222428]
[1755891998089,1.24613319,116910.0,116900.0,0.17222428]
[1755891998748,1.09045319,116910.0,116900.0,0.17222428]
[1755891998957,1.24613319,116910.0,116900.0,0.17222428]
[1755892000640,1.24012172,116910.0,116900.0,0.17222428]
[1755892001357,1.09783613,116910.0,116900.0,0.17222428]
[1755892001498,1.25351613,116910.0,116900.0,0.17438428]
[1755892001724,1.23503352,116910.0,116900.0,0.17438428]
[1755892002142,1.2143845,116910.0,116900.0,0.17438428]
[1755892002342,1.20636376,116910.0,116900.0,0.17739428]
[1755892002607,1.06813278,116910.0,116900.0,0.17739428]
[1755892002826,1.2077679,116910.0,116900.0,0.17739428]
[1755892003047,1.0520879,116910.0,116900.0,0.17739428]
[1755892003270,0.8656479,116910.0,116900.0,0.17739428]
[1755892003700,1.2056479,116910.0,116900.0,0.17739428]
[1755892004981,1.2016479,116910.0,116900.0,0.17639428]
[1755892005172,1.2016479,116910.0,116900.0,0.17739428]
[1755892005173,1.1986479,116910.0,116900.0,0.17739428]
[1755892005374,0.59602447,116910.0,116900.0,0.17739428]
[1755892005582,1.1996479,116910.0,116900.0,0.17739428]
[1755892005997,1.16034761,116910.0,116900.0,0.17739428]
[1755892006623,1.1469532,116910.0,116900.0,0.17739428]
[1755892007696,1.1489132,116910.0,116900.0,0.17739428]
[1755892008130,1.1489132,116910.0,116900.0,0.17438428]
[1755892008331,1.1521132,116910.0,116900.0,0.17222428]
[1755892008759,1.15206334,116910.0,116900.0,0.17222428]
[1755892009633,1.18988009,116910.0,116900.0,0.17222428]
[1755892009747,1.20327379,116910.0,116900.0,0.17222428]
[1755892009966,1.04759379,116910.0,116900.0,0.17438428]
[1755892010178,1.20327379,116910.0,116900.0,0.17222428]
[1755892011606,1.04759379,116910.0,116900.0,0.17222428]
[1755892011813,1.20323379,116910.0,116900.0,0.17222428]
[1755892012029,1.19876303,116910.0,116900.0,0.17222428]
[1755892013096,1.19556303,116910.0,116900.0,0.17438428]
[1755892015929,1.19556303,116910.0,116900.0,0.17739428]
[1755892016118,1.19556303,116910.0,116900.0,0.17438428]
[1755892016569,1.19876303,116910.0,116900.0,0.17438428]
[1755892016773,1.19876303,116910.0,116900.0,0.17222428]
[1755892017133,1.19876303,116910.0,116900.0,0.17438428]
[1755892017348,1.19556303,116910.0,116900.0,0.17438428]
[1755892017540,1.19876303,116910.0,116900.0,0.17438428]
[1755892017912,1.19876303,116910.0,116900.0,0.17222428]
[1755892018320,1.19876303,116910.0,116900.0,0.17438428]
[1755892018519,1.19876303,116910.0,116900.0,0.17222428]
[1755892018714,1.19876303,116910.0,116900.0,0.17438428]
[1755892020410,1.19876303,116910.0,116900.0,0.17222428]
[1755892021047,1.64670646,116910.0,116900.0,0.17222428]
[1755892021480,1.19876303,116910.0,116900.0,0.17222428]
[1755892022285,1.03796303,116910.0,116900.0,0.17730428]
[1755892022467,1.17611401,116910.0,116900.0,0.17730428]
[1755892023461,1.19356303,116910.0,116900.0,0.17730428]
[1755892023928,0.7456196,116910.0,116900.0,0.17730428]
[1755892024137,1.19356303,116910.0,116900.0,0.17730428]